{"text_format":"2","workbook":"xlsx","n_sheets":9,"sheets":["Édesipari, malomipari termékek","Gyorsfagyasztott termékek","Konzvervek","Előhűtött sertéshús, marhahús","Fagyasztott baromfihús","Sertés és baromfi felvágottak","Tejtermékek, sajt, élesztő","Sütőipari termékek","Friss zöldség, gyümölcs"],"not_rendered":{"charts":0,"images":0,"macros":0,"external_links":0,"defined_names":2,"comments":1,"pivot_tables":0},"unopened":[],"bounds":{"document_bytes":16777216,"sheet_cells":100000,"run_cost":"one","rows_first":2000,"rows_last":500,"rows_between":2000,"halvings":0,"cell_chars":16384,"cell_head_chars":4096},"cells_cut":0,"cells_raw":0,"read":"whole","date_system":"1900"}

{"sheet":"Édesipari, malomipari termékek","index":0,"n_rows":101,"n_cols":11,"rows_kept":101,"cut":false,"hidden":false,"merged":[[0,0,0,10],[1,5,1,10],[2,5,2,10],[4,0,4,1],[4,2,4,5],[4,6,4,10],[1,0,1,4],[2,0,2,4],[96,0,96,10],[99,0,99,2],[99,6,99,9],[100,6,100,9],[33,0,33,1],[49,0,49,1],[89,0,89,5],[93,0,93,1],[94,0,94,10],[95,0,95,10]]}
["ÁRTÁBLÁZAT"]
["Ajánlatkérő: ",{"$nulls":4},"Ajánlattevő: "]
["Szerződés időtartama: 2024.01.01.-2024.06.30.",{"$nulls":4},"Ellenszolgáltatás megfizetésének módja: 30 napon belül, átutalással"]
["Sor-szám","Megnevezés","Kiszerelés","Mennyiség        1 hónapra vonatkozóan","Mennyiségi egység","Szállítás","Nettó egységár            Ft ","Nettó összár            Ft","ÁFA %","Bruttó egységár Ft","Bruttó összár            Ft"]
["ÉDESIPARI, MALOMIPARI TERMÉKEK",null,"VALAMENNYI TÉTELSORRA  AJÁNLATOT KELL TENNI!",null,null,null,"A megadott áraknak minden a szállítással összefüggő költséget tartalmaznia kell!"]
[1,"Búza finomliszt","1 kg",130,"kg","két hetente",null,{"$f":"G6*D6","v":0},0.27,{"$f":"G6*1.27","v":0},{"$f":"J6*D6","v":0}]
[2,"Rizsliszt","1 kg",2,"kg","alkalmanként",null,{"$f":"G7*D7","v":0},0.27,0,{"$f":"J7*D7","v":0}]
[3,"Búzadara","1 kg",20,"kg","havi egy alkalom",null,0,0.27,{"$f":"G8*1.27","v":0},0]
[4,"Bulgur","1 kg",20,"kg","két hetente",null,0,0.18,{"$f":"G9*1.18","v":0},0]
[5,"Kuszkusz","1 kg",5,"kg","havi egy alkalom",null,0,0.27,0,0]
[6,"Rizs \"A\" minőségű","1 kg",40,"kg","két hetente",null,0,0.27,0,0]
[7,"Barna rizs","1 kg",10,"kg","havi egy alkalom",null,0,0.27,0,0]
[8,"Levesgyöngy","1 kg",1,"kg","havi egy alkalom",null,0,0.18,{"$f":"G13*1.18","v":0},0]
[9,"Kristálycukor","1 kg",100,"kg","két hetente",null,0,0.27,0,0]
[10,"Porcukor","0,5 kg",5,"kg","havi egy alkalom",null,0,0.27,0,0]
[11,"Vaníliás cukor","1 kg",1,"kg","havi egy alkalom",null,0,0.27,0,0]
[12,"Szaharin ","39 g",30,"db","havonta",null,0,0.27,0,0]
[13,"Háztartási keksz","1 kg",15,"kg"," havonta",null,0,0.27,0,0]
[14,"Fehérbab","1 kg",2,"kg","havi egy alkalom",null,0,0.27,0,0]
[15,"Tarkabab","1 kg",1,"kg","alkalmanként",null,0,0.27,0,0]
[16,"Sárgaborsó","1 kg",5,"kg","havi két alkalom",null,0,0.27,0,0]
[17,"Lencse","1 kg",5,"kg","havi két alkalom",null,0,0.27,0,0]
[18,"Csicseriborsó","1 kg",1,"kg","havonta",null,0,0.27,0,0]
[19,"Tortabevonó csokoládé","100 g",1,"db","alkalmanként",null,0,0.27,0,0]
[20,"Szezámmag","1 kg",0.5,"kg","alkalmanként",null,0,0.27,0,0]
[21,"Mák ","1 kg",1,"kg","havi egy alkalom",null,0,0.27,0,0]
[22,"Dióbél ","1 kg",3,"kg","havi egy alkalom",null,0,0.27,0,0]
[23,"Hántolt tökmag","1 kg",1,"kg","havonta",null,0,0.27,0,0]
[24,"Natúr puffasztott rizsszelet","100 g",60,"db","havonta",null,0,0.18,{"$f":"G29*1.18","v":0},0]
[25,"Gyümölcsös jó reggelt keksz*","50 g",200,"db","kéthetente",null,0,0.27,0,0]
[26,"Gyümölcsös müzli szelet","20 g",150,"db","kéthetetnte",null,0,0.18,{"$f":"G31*1.18","v":0},0]
[27,"Korpovit keksz","174 g",100,"db","havonta",null,0,0.18,{"$f":"G32*1.18","v":0},0]
[28,"Étkezési keményítő","250 g",1,"kg","alkalmanként",null,0,0.27,0,0]
["SZÁRAZTÉSZTA"]
[29,"Cérnametélt 8 tojásos","lédig",2,"kg","két hetente",null,{"$f":"G35*D35","v":0},0.27,0,{"$f":"J35*D35","v":0}]
[30,"Kiskocka 8 tojásos","lédig",5,"kg","két hetente",null,0,0.27,0,0]
[31,"Eperszalag 8 tojásos","lédig",5,"kg","két hetente",null,0,0.27,0,0]
[32,"Csigatészta 8 tojásos","lédig",3,"kg","két hetente",null,0,0.27,0,0]
[33,"ABC tészta 4 tojásos","lédig",1,"kg","havi egy alkalom",null,0,0.27,0,0]
[34,"Durum tarhonya  ","lédig",3,"kg","két hetente",null,0,0.27,0,0]
[35,"Spagetti Durum","lédig",5,"kg","két hetente",null,0,0.27,0,0]
[36,"Szarvascska Durum","lédig",3,"kg","két hetente",null,0,0.27,0,0]
[37,"Orsó Durum","lédig",2,"kg","két hetente",null,0,0.27,0,0]
[38,"Nagykocka Durum","lédig",10,"kg","két hetente",null,0,0.27,0,0]
[39,"Rövid metélt Durum","lédig",20,"kg","két hetente",null,0,0.27,0,0]
[40,"Rövidcső Durum","lédig",5,"kg","két hetente",null,0,0.27,0,0]
[41,"Gluténmentes spagetti*","1 kg",1,"kg","alkalmanként",null,0,0.27,{"$f":"G47*1.27","v":0},0]
[42,"Gluténmentes levestészta*","1 kg",1,"kg","alkalmanként",null,0,0.27,{"$f":"G48*1.27","v":0},0]
[43,"Gluténmentes száraztészta*","1 kg",1,"kg","alkalmanként",null,0,0.27,{"$f":"G49*1.27","v":0},0]
["FŰSZEREK"]
[44,"Sómentes ételízesítő","1 kg",6,"kg"," havonta",null,0,0.27,0,0]
[45,"Fűszerpaprika édesnemes","1 kg",1,"kg"," havonta",null,0,0.27,0,0]
[46,"Fokhagyma por","10 g",0.1,"kg","alkalmanként",null,0,0.27,0,0]
[47,"Köménymag, egész","1 kg",0.3,"kg","alkalmanként",null,0,0.27,0,0]
[48,"Őrölt bors","1 kg",1,"kg"," havonta",null,0,0.27,0,0]
[49,"Köménymag, őrölt ","1 kg",0.3,"kg","alkalmanként",null,0,0.27,0,0]
[50,"Majoranna, morzsolt","10 g",0.1,"kg","két havonta",null,0,0.27,0,0]
[51,"Szegfűszeg","10 g",0.1,"kg","két havonta",null,0,0.27,0,0]
[52,"Fahéj, őrölt","10 g",0.1,"kg","két havonta",null,0,0.27,0,0]
[53,"Szerecsendió","10 g",0.1,"kg","két havonta",null,0,0.27,0,0]
[54,"Gyömbér ","10 g",0.1,"kg","két havonta",null,0,0.27,0,0]
[55,"Kakukkfű","10 g",0.1,"kg","alkalmanként",null,0,0.27,0,0]
[56,"Tárkony ","10 g",0.1,"kg","alkalmanként",null,0,0.27,0,0]
[57,"Oregánó","10 g",0.1,"kg","alkalmanként",null,0,0.27,0,0]
[58,"Bazsalikom","10 g",0.1,"kg","alkalmanként",null,0,0.27,0,0]
[59,"Babérlevél","10 g",0.1,"kg","két havonta",null,0,0.27,0,0]
[60,"Családi kávé","200 g",2,"kg"," havonta",null,0,0.27,0,0]
[61,"Fekete teafű (indiai v. kínai)","250 g",2,"kg","havonta",null,0,0.27,0,0]
[62,"Csokoládé pudingpor főzős","1 kg",1,"kg","két havonta",null,0,0.18,{"$f":"G69*1.18","v":0},0]
[63,"Vaníliás pudingpor főzős","1 kg",1,"kg","két havonta",null,0,0.18,{"$f":"G70*1.18","v":0},0]
[64,"Jódozott konyhasó","1 kg",40,"kg","havonta",null,0,0.27,{"$f":"G71*1.27","v":0},{"$f":"J71*D71","v":0}]
[65,"Majonéz","500 g",1,"db","alkalmanként",null,0,0.27,0,0]
[66,"Mustár asztali","500 g",12,"db","két hetente",null,0,0.27,0,0]
[67,"Mazsola","1 kg",0.5,"kg","két havonta",null,0,0.27,0,0]
[68,"Kókuszreszelék","1 kg",0.5,"kg","alkalmanként",null,0,0.27,0,0]
[69,"Citromsav","1 kg",3,"kg","két havonta",null,0,0.27,0,0]
[70,"Háztartási ecet 10%","1 l",3,"liter","havonta",null,0,0.27,0,0]
[71,"Mini margarin ","10 g",5000,"db","hetente",null,0,0.27,0,0]
[72,"Rama margarin kocka","250 g",10,"kg","hetente",null,0,0.27,0,0]
[73,"Napraforgó étolaj","1 l",80,"liter","két hetente",null,0,0.27,0,0]
[74,"Kakaópor (Szerencsi )","1 kg",2,"kg","havi egy alkalom",null,0,0.27,0,0]
[75,"Paradicsomszósz csípős Pang-gang","1 l",1,"db","alkalmanként",null,0,0.27,0,0]
[76,"Szójaszósz","0,5 l",1,"db","alkalmanként",null,0,0.27,0,0]
[77,"Sütőpor","12 g",2,"db","alkalmanként",null,0,0.27,0,0]
[78,"Koriander","10 g",0.1,"kg","alkalmanként",null,0,0.27,0,0]
[79,"Rozmaring","10 g",0.1,"kg","alkalmanként",null,0,0.27,0,0]
[80,"Curry por","10 g",0.1,"kg","alkalmanként",null,0,0.27,0,0]
[81,"Wok fűszer","10 g",0.1,"kg","alkalmanként",null,0,0.27,0,0]
[82,"Szódabikarbóna","50 g",0.1,"kg","alkalmanként",null,{"$f":"G89*D89","v":0},0.27,{"$f":"G89*1.27","v":0},{"$f":"J89*D89","v":0}]
["ÖSSZESEN:",{"$nulls":6},{"$f":"SUM(H6:H89)","v":0},null,null,{"$f":"SUM(K6:K89)","v":0}]
[]
["Szállítási határidő: 5 nap",null,"* A gkuténmentes tészták ne legyen Fe- mini tészta. A minősége nem megfelelő."]
[{"$nulls":5},"*Kizárólag gyümölcsös jóreggelt kekszet fogadunk el."]
[]
["A FENTI TERMÉKEK VONATKOZÁSÁBA HELYETTESÍTŐ TERMÉKEKET ELŐZETES EGYEZTETÉST ÉS GYÁRTMÁNYLAP MEGKÜLDÉSÉT KÖVETŐEN FOGADUNK EL!"]
[]
[]
[]
[]
["2024.",{"$nulls":5},"____________________________________"]
[{"$nulls":6},"cégszerű aláírás"]

{"sheet":"Gyorsfagyasztott termékek","index":1,"n_rows":33,"n_cols":11,"rows_kept":33,"cut":false,"hidden":false,"merged":[[32,6,32,9],[0,0,0,10],[1,5,1,10],[2,5,2,10],[5,2,5,5],[5,6,5,10],[24,0,24,5],[28,0,28,10],[31,0,31,2],[31,6,31,9],[1,0,1,4],[2,0,2,4],[5,0,5,1]]}
[" ÁRTÁBLÁZAT"]
["Ajánlatkérő: ",{"$nulls":4},"Ajánlattevő: "]
["Szerződés időtartama: 2024.01.01.-2024.06.30.",{"$nulls":4},"Ellenszolgáltatás megfizetésének módja: 30 napon belül, átutalással"]
[]
["Sor-szám","Megnevezés","Kiszerelés","Mennyiség          1 hónapra vonatkozóan","Mennyiségi egység","Szállítás","Nettó egységár            Ft","Nettó összár           Ft","ÁFA %","Bruttó egységár Ft","Bruttó összár              Ft"]
["GYORSFAGYASZTOTT TERMÉKEK",null,"VALAMENNYI TÉTELSORRA  AJÁNLATOT KELL TENNI!",null,null,null,"A megadott áraknak minden a szállítással összefüggő költséget tartalmaznia kell!"]
[1,"Tengeri halfilé","1 kg",15,"kg","havi egy alkalom",null,{"$f":"D7*G7","v":0},0.05,{"$f":"G7*1.05","v":0},{"$f":"J7*D7","v":0}]
[2,"Zöldborsó","20 kg ",50,"kg","hetente",null,0,0.27,{"$f":"G8*1.27","v":0},0]
[3,"Zöldbab sárgahüvelyű","20 kg ",30,"kg","hetente",null,0,0.27,0,0]
[4,"Zellerkocka","20 kg ",15,"kg","kéthetente",null,0,0.27,0,0]
[5,"Karalábékocka","20 kg ",20,"kg","kéthetente",null,0,0.27,0,0]
[6,"Karfiol","20 kg ",40,"kg","hetente",null,0,0.27,0,0]
[7,"Brokkoli","20 kg ",60,"kg","kéthetente",null,0,0.27,0,0]
[8,"Kelbimbó","1 kg ",2,"kg","kéthavonta",null,0,0.27,0,0]
[9,"Parajkrém ","lédig",20,"kg","havonta",null,0,0.27,0,0]
[10,"Gyalult tök kaporral","1 kg",60,"kg","két hetente",null,0,0.27,0,0]
[11,"Csemege kukorica","20 kg ",10,"kg","havonta",null,0,0.27,0,0]
[12,"Kapor","1 kg",1,"kg","alkalmanként",null,0,0.27,{"$f":"G18*1.27","v":0},0]
[13,"Finom főzelék","20 kg ",15,"kg","havonta",null,0,0.27,0,0]
[14,"Petrezselyemzöld","1 kg",5,"kg","havonta",null,0,0.27,0,0]
[15,"Bébikukorica","lédig",4,"kg","alkalmanként",null,0,0.27,0,0]
[16,"Erdei gyümölcs-keverék","lédig",2,"kg","alkalmanként",null,0,0.27,0,0]
[17,"Halászlé sürítmény","200 g",6,"db","alkalmanként",null,0,0.05,{"$f":"G23*1.05","v":0},0]
[18,"Fagyasztott pontyszelet","1 kg",5,"kg","alkalmanként",null,0,0.05,{"$f":"G24*1.05","v":0},0]
[" ÖSSZESEN:",{"$nulls":6},{"$f":"SUM(H7:H24)","v":0},null,null,{"$f":"SUM(K7:K24)","v":0}]
[]
["Szállítási határidő: 5 nap"]
[]
["A FENTI TERMÉKEK VONATKOZÁSÁBA HELYETTESÍTŐ TERMÉKEKET ELŐZETES EGYEZTETÉST ÉS GYÁRTMÁNYLAP MEGKÜLDÉSÉT KÖVETŐEN FOGADUNK EL!"]
[]
[]
["2024.",{"$nulls":5},"____________________________________"]
[{"$nulls":6},"cégszerű aláírás"]

{"sheet":"Konzvervek","index":2,"n_rows":51,"n_cols":10,"rows_kept":51,"cut":false,"hidden":false,"merged":[[0,0,0,9],[1,3,1,9],[2,3,2,9],[5,0,5,1],[1,0,1,2],[2,0,2,2],[5,2,5,5],[5,6,5,9],[42,0,42,3],[46,0,46,9],[49,0,49,1],[49,5,49,8],[50,5,50,8]]}
["ÁRTÁBLÁZAT"]
["Ajánlatkérő:",null,null,"Ajánlattevő:  "]
["Szerződés időtartama: 2024.01.01.-2024.06.30.",null,null,"Ellenszolgáltatás megfizetésének módja: 30 napon belül, átutalással"]
[]
["Sor-szám","Megnevezés","Mennyiség 1 hónapra vonatkozóan","Mennyiségi egység","Szállitás","Nettó egységár          Ft    ","Nettó összár         Ft","ÁFA %","Bruttó egységár Ft","Bruttó összár             Ft"]
["KONZERVEK",null,"VALAMENNYI TÉTELSORRA AJÁNLATOT KELL TENNI!",null,null,null,"A megadott áraknak minden a szállítással összefüggő költséget tartalmaznia kell!"]
[1,"Almabefőtt 3800/2300 g",1,"db","havonta",null,{"$f":"F7*C7","v":0},0.27,{"$f":"F7*1.27","v":0},{"$f":"I7*C7","v":0}]
[{"$f":"A7+1","v":2},"Almabefőtt 650 g",24,"db","havonta",null,0,0.27,0,0]
[3,"Ananász befőtt 565 g",4,"db","alkalmanként",null,0,0.27,0,0]
[4,"Bébiétel gyümölcs 190 g",120,"db","havont",null,0,0.27,0,0]
[5,"Bébiétel csirkehús + zöldséggel 190 g",120,"db","havonta",null,0,0.27,0,0]
[6,"Csemege uborka 680 g",16,"db","kéthetente",null,0,0.27,0,0]
[7,"Cseresznye befőtt 600 g",8,"db","havonta",null,0,0.27,0,0]
[8,"Csemege uborka  4000/2200 g",1,"db","havonta",null,0,0.27,0,0]
[9,"Diabetikus almabefőtt 650 g",30,"db","havonta",null,0,0.27,0,0]
[10,"Diabetikus meggybefőtt 700 g",2,"db","havonta",null,0,0.27,0,0]
[11,"Diabetikus minijam vegyes ízű 20 g",350,"db","kéthetente",null,0,0.27,0,0]
[12,"Ecetes almapaprika*  680 g",2,"db","havonta",null,0,0.27,0,0]
[13,"Ecetes torma 200 g",1,"db","havonta",null,0,0.27,0,0]
[14,"Gomba szeletelt dobozos 400 g",3,"db","havonta",null,0,0.27,0,0]
[15,"Grand Gold gyümölcs ital sűrítmény 1 L",2,"liter","alkalmanként",null,0,0.27,0,0]
[16,"Gyümölcslé őszibarack 25%-os (Sió) 1 L",2,"liter","alkalmanként",null,0,0.27,0,0]
[17,"Húskonzerv 0,4 kg",10,"kg","havonta",null,0,0.27,0,0]
[18,"Káposztával töltött almapaprika*  680 g",4,"db","havonta",null,0,0.27,0,0]
[19,"Lecsó konzerv natúr 680 g",20,"db","kéthetente",null,0,0.27,0,0]
[20,"Magozott meggybefőtt 700 g",8,"db","havonta",null,0,0.27,0,0]
[21,"Meggybefőtt 4000/2200 g",2,"db","havonta",null,0,0.27,0,0]
[22,"Mini méz 25 g",200,"db","kéthetente",null,0,0.27,0,0]
[23,"Minijam sárgabarack ízű  25 g",500,"db","kéthetente",null,0,0.27,0,0]
[24,"Mogyorókrém",5,"kg","kéthetente",null,0,0.27,0,0]
[25,"Natúr citromlé 40%-os 1 literes *",30,"liter","kéthetente",null,0,0.27,0,0]
[26,"Őszibarack befőtt dobozos 820 g",16,"db","kéthetente",null,0,0.27,0,0]
[27,"Sűrített paradicsom (aranyfácán) 850 g",16,"db","havonta",null,0,0.27,0,0]
[28,"Sárgabarack íz  600 g",8,"db","kéthetente",null,0,0.27,0,0]
[29,"Sertés májkrém 65 g",120,"db","kéthetente",null,0,0.27,0,0]
[30,"Szilva befőtt  680 g",16,"db","kéthetente",null,0,0.27,0,0]
[31,"Szilvabefőtt 4200/2200 g",2,"db","havonta",null,0,0.27,0,0]
[32,"Vágott vegyes savanyúság 4100/2200 g",1,"db","havonta",null,0,0.27,0,0]
[33,"Vágott vegyes savanyúság 680 g",8,"db","kéthetente",null,0,0.27,0,0]
[34,"Vegyes befőtt 4000/2250 g",2,"db","havonta",null,0,0.27,0,0]
[35,"Vegyesbefőtt 700 g",20,"db","kéthetente",null,0,0.27,0,0]
[36,"Méz 680 g",1,"db","havonta",null,0,0.27,0,0]
[" ÖSSZESEN:",{"$nulls":5},{"$f":"SUM(G7:G42)","v":0},null,null,{"$f":"SUM(J7:J42)","v":0}]
[]
["Szállítási határidő: 5 nap",null,null,"* A natúr citromlé 1 l -es legyen."]
[null,null,null,"* A termék ne legyen csípős."]
["A FENTI TERMÉKEK VONATKOZÁSÁBA HELYETTESÍTŐ TERMÉKEKET ELŐZETES EGYEZTETÉST ÉS GYÁRTMÁNYLAP MEGKÜLDÉSÉT KÖVETŐEN FOGADUNK EL!"]
[]
[]
["2024.",{"$nulls":4},"____________________________________"]
[{"$nulls":5},"cégszerű aláírás"]

{"sheet":"Előhűtött sertéshús, marhahús","index":3,"n_rows":26,"n_cols":11,"rows_kept":26,"cut":false,"hidden":false,"merged":[[5,2,5,5],[5,6,5,10],[0,0,0,10],[1,0,1,4],[1,5,1,10],[2,0,2,4],[2,5,2,10],[5,0,5,1],[18,0,18,5],[22,0,22,10],[24,0,24,2],[24,6,24,9],[25,6,25,9]]}
[" ÁRTÁBLÁZAT"]
["Ajánlatkérő:",{"$nulls":4},"Ajánlattevő:  "]
["Szerződés időtartama: 2024.01.01.-2024.06.30.",{"$nulls":4},"Ellenszolgáltatás megfizetésének módja: 30 napon belül, átutalással"]
[]
["Sor-szám","Megnevezés","Kiszerelés","Mennyiség 1 hónapra vonatkozóan","Mennyiségi egység","Szállítás","Nettó egységár            Ft  ","Nettó összár             Ft","ÁFA %","Bruttó egységár Ft","Bruttó összár              Ft"]
["ELŐHŰTÖTT SERTÉSHÚS, MARHAHÚS, BELSŐSÉG ",null,"VALAMENNYI TÉTELSORRA  AJÁNLATOT KELL TENNI!",null,null,null,"A megadott áraknak minden a szállítással összefüggő költséget tartalmaznia kell!"]
["1.","Marha comb",null,20,"kg","napi kiszállítás, hétköznaponként",null,{"$f":"G7*D7","v":0},0.27,{"$f":"G7*1.27","v":0},{"$f":"J7*D7","v":0}]
["2.","Sertés tarja csont nélkül",null,8,"kg","napi kiszállítás, hétköznaponként",null,{"$f":"G8*D8","v":0},0.05,{"$f":"G8*1.05","v":0},{"$f":"J8*D8","v":0}]
["3.","Sertés lapocka csont nélkül",null,40,"kg","napi kiszállítás, hétköznaponként",null,0,0.05,0,0]
["4.","Sertés comb csont nélkül",null,100,"kg","napi kiszállítás, hétköznaponként",null,0,0.05,0,0]
["5.","Sertés karaj csont nélkül",null,10,"kg","napi kiszállítás, hétköznaponként",null,0,0.05,0,0]
["6.","Sertés húsos csont",null,80,"kg","napi kiszállítás, hétköznaponként",null,0,0.05,0,0]
["7.","Sertés máj",null,1,"kg","havonta",null,0,0.05,0,0]
["8.","Sertés zsír",null,2,"kg","kéthetente",null,0,0.27,{"$f":"G14*1.27","v":0},0]
["9.","Rizses hurka",null,1,"kg","alkalmanként",null,0,0.27,0,0]
["10.","Sütnivaló kolbász",null,1,"kg","alkalmanként",null,0,0.27,0,0]
["11.","Füstölt szalonna",null,2,"kg","kéthetente",null,0,0.27,0,0]
["12.","Kolozsvári húsos fülstölt szalonna",null,2,"kg","alkalmanként",null,0,0.27,0,0]
["ÖSSZESEN:",{"$nulls":6},{"$f":"SUM(H7:H18)","v":0},null,null,{"$f":"SUM(K7:K18)","v":0}]
[]
["Friss hús esetén szállítás minden hétköznap, szállítási határidő: 1 hét"]
[]
["A FENTI TERMÉKEK VONATKOZÁSÁBA HELYETTESÍTŐ TERMÉKEKET ELŐZETES EGYEZTETÉS UTÁN FOGADUNK EL!"]
[]
["2024.",{"$nulls":5},"____________________________________"]
[{"$nulls":6},"cégszerű aláírás"]

{"sheet":"Fagyasztott baromfihús","index":4,"n_rows":25,"n_cols":11,"rows_kept":25,"cut":false,"hidden":false,"merged":[[24,6,24,9],[13,0,13,5],[16,0,16,10],[20,0,20,1],[23,0,23,2],[23,6,23,9],[0,0,0,10],[1,5,1,10],[2,5,2,10],[5,2,5,5],[5,6,5,10],[1,0,1,4],[2,0,2,4],[5,0,5,1]]}
[" ÁRTÁBLÁZAT"]
["Ajánlatkérő:",{"$nulls":4},"Ajánlattevő:"]
["Szerződés időtartama: 2024.01.01.-2024.06.30.",{"$nulls":4},"Ellenszolgáltatás megfizetésének módja: 30 napon belül, átutalással"]
[]
["Sor-szám","Megnevezés","Kiszerelés","Mennyiség \n1 hónapra vonatkozóan","Mennyiségi egység","Szállítás","Nettó egységár Ft","Nettó összár Ft","ÁFA %","Bruttó egységár Ft","Bruttó összár Ft"]
["FAGYASZTOTT BAROMFI HÚS",null,"VALAMENNYI TÉTELSORRA  AJÁNLATOT KELL TENNI!",null,null,null,"A megadott áraknak minden a szállítással összefüggő költséget tartalmaznia kell!"]
["1.","Csirkecomb egész fagyasztott","1 kg",150,"kg","hetente",null,{"$f":"G7*D7","v":0},0.05,{"$f":"G7*1.05","v":0},{"$f":"J7*D7","v":0}]
["2.","Csirke máj fagyasztott","1 kg",6,"kg","havonta",null,{"$f":"G8*D8","v":0},0.05,0,{"$f":"J8*D8","v":0}]
["3.","Csirke aprólék fagyasztott","1 kg",10,"kg","alkalmanként",null,0,0.05,0,0]
["4.","Pulykacomb filé felső fagyasztott","1 kg",50,"kg","hetente",null,0,0.05,0,0]
["5.","Pulykamell filézett  fagyasztott","1 kg",5,"kg","hetente",null,0,0.05,0,0]
["6.","Csirkemell filézett fagyasztott","1 kg",50,"kg","alkalmanként",null,0,0.05,0,0]
["7.","Csirkeszárny fagyasztott","1 kg",15,"kg","alkalmanként",null,0,0.05,0,0]
["ÖSSZESEN:",{"$nulls":6},{"$f":"SUM(H7:H13)","v":0},null,null,{"$f":"SUM(K7:K13)","v":0}]
[]
[]
["A FENTI TERMÉKEK VONATKOZÁSÁBA HELYETTESÍTŐ TERMÉKEKET ELŐZETES EGYEZTETÉST ÉS GYÁRTMÁNYLAP MEGKÜLDÉSÉT KÖVETŐEN FOGADUNK EL!"]
[]
["Szállítási határidő: 1 hét",null,null,"A fagyasztott baromfihús termékeket 1 kg -os kiszerelésben kérjük."]
[]
[]
[]
[]
["2024.",{"$nulls":5},"____________________________________"]
[{"$nulls":6},"cégszerű aláírás"]

{"sheet":"Sertés és baromfi felvágottak","index":5,"n_rows":50,"n_cols":10,"rows_kept":50,"cut":false,"hidden":false,"merged":[[49,5,49,8],[0,0,0,9],[2,4,2,9],[3,4,3,9],[6,2,6,4],[6,5,6,9],[40,0,40,4],[43,0,43,9],[48,0,48,1],[48,5,48,8],[2,0,2,3],[3,0,3,3],[6,0,6,1]]}
[" ÁRTÁBLÁZAT"]
[]
["Ajánlatkérő: ",null,null,null,"Ajánlattevő: "]
["Szerződés időtartama: 2024.01.01.-2024.06.30.",null,null,null,"Ellenszolgáltatás megfizetésének módja: 30 napon belül, átutalással"]
[]
["Sor-szám","Megnevezés","Mennyiség 1 hónapra vonatkozóan","Mennyiségi egység","Szállítás","Nettó egységár (Ft)","Netó összár (Ft)","ÁFA %","Bruttó egységár (Ft)","Bruttó összár (Ft)"]
["SERTÉS ÉS BAROMFI FELVÁGOTTAK",null,"VALAMENNYI TÉTELSORRA AJÁNLATOT KELL TENNI!",null,null,"A megadott áraknak minden a szállítással összefüggő költséget tartalmaznia kell!"]
[1,"Alföldi csemege pulykamell glutén- és laktózmentes",20,"kg","hetente",null,{"$f":"C8*F8","v":0},0.27,{"$f":"F8*1.27","v":0},{"$f":"I8*C8","v":0}]
[{"$f":"A8+1","v":2},"Baromfi májas glutén- és laktózmentes",16,"kg","hetente",null,{"$f":"C9*F9","v":0},0.27,{"$f":"F9*1.27","v":0},{"$f":"I9*C9","v":0}]
[{"$f":"A9+1","v":3},"Baromfi veronai felvágott glutén- és laktózmentes",20,"kg","kéthetente",null,0,0.27,0,0]
[4,"Baromfi virsli/vákumos/glutén- és laktózmentes",10,"kg","hetente",null,0,0.27,0,0]
[5,"Baromfi párizsi glutén- és laktózmentes, szójamentes",25,"kg","hetente",null,0,0.27,0,0]
[6,"Baromfi sajtos párizsi",5,"kg","kéthetente",null,0,0.27,0,0]
[7,"Csabai felvágott sertés",2,"kg","kéthetente",null,0,0.27,0,0]
[8,"Csülöksonka glutén- és laktózemntes, szójamentes",10,"kg","hetente",null,0,0.27,0,0]
[9,"Diák csemege",2,"kg","kéthetente",null,0,0.27,0,0]
[10,"Fokhagymás felvágott sertés",6,"kg","kéthetente",null,0,0.27,0,0]
[11,"Füstölt csülök",1,"kg","alkalmanként",null,0,0.27,0,0]
[12,"Füstölt főtt tarja",1,"kg","alklamanként",null,0,0.27,0,0]
[13,"Gyulai májas glutén-és laktózmentes",16,"kg","hetente",null,0,0.27,0,0]
[14,"Kapuvári  uzsonna sonka",6,"kg","hetente",null,0,0.27,0,0]
[15,"Körös pulykamell sonka",20,"kg","kéthetente",null,0,0.27,0,0]
[16,"Krinolin",20,"kg","kéthetente",null,0,0.27,0,0]
[17,"Lecsókolbász",4,"kg","kéthetente",null,0,0.27,0,0]
[18,"Májusi csemege sertés",16,"kg","hetente",null,0,0.27,0,0]
[19,"Milánói sertés felv.",4,"kg","háromhetente",null,0,0.27,0,0]
[20,"Nyári  turista felv.",2,"kg","kéthetente",null,0,0.27,0,0]
[21,"Olasz felvágott sertés.",6,"kg","hetente",null,0,0.27,0,0]
[22,"Párizsi felvágott sertés glutén-és laktózmentes",10,"kg","kéthetente",null,0,0.27,0,0]
[23,"Pizzasonka pulyka glutén-és laktózmentes",12,"kg","hetente",null,0,0.27,0,0]
[24,"Pulykasonka glutén-és laktózmentes",18,"kg","hetente",null,0,0.27,0,0]
[25,"Sajtos sertés parizer",8,"kg","kéthetente",null,0,0.27,0,0]
[26,"Sertés löncs felv.",15,"kg","hetente",null,0,0.27,0,0]
[27,"Sertés virsli műbélben",6,"kg","kéthetente",null,0,0.27,0,0]
[28,"Vadász felvágott sertés",4,"kg","kéthetente",null,0,0.27,0,0]
[29,"Bécsi felvágott",5,"kg","hetente",null,0,0.27,0,0]
[30,"Zala felv. sertés.glutén-és laktózmentes",25,"kg","heti két alkalommal",null,0,0.27,0,0]
[31,"Sajtos tavaszi felvágott",12,"kg","kéthetente",null,0,0.27,0,0]
[32,"Csirkemellsonka glutén- és tejmetens, szójamentes",9,"kg","kéthetente",null,0,0.27,0,0]
[33,"Soproni felvágott",4,"kg","kéthetente",null,0,0.27,{"$f":"F40*1.27","v":0},{"$f":"I40*C40","v":0}]
[" ÖSSZESEN:",{"$nulls":5},{"$f":"SUM(G8:G40)","v":0},null,null,{"$f":"SUM(J8:J40)","v":0}]
[]
[]
["A FENTI TERMÉKEK VONATKOZÁSÁBA HELYETTESÍTŐ TERMÉKEKET ELŐZETES EGYEZTETÉST ÉS GYÁRTMÁNYLAP MEGKÜLDÉSÉT KÖVETŐEN FOGADUNK EL!"]
[]
[]
["Szállítási határidő: 1 hét"]
[]
["2024.",{"$nulls":4},"____________________________________"]
[{"$nulls":5},"cégszerű aláírás"]

{"sheet":"Tejtermékek, sajt, élesztő","index":6,"n_rows":42,"n_cols":11,"rows_kept":42,"cut":false,"hidden":false,"merged":[[34,0,34,10],[0,0,0,10],[1,5,1,10],[2,5,2,10],[5,2,5,5],[32,0,32,5],[1,0,1,4],[2,0,2,4],[5,0,5,1],[5,6,5,10],[36,0,36,10],[37,0,37,10],[40,0,40,2],[40,6,40,10],[41,6,41,10]]}
["ÁRTÁBLÁZAT"]
["Ajánlatkérő: ",{"$nulls":4},"Ajánlattevő: "]
["Szerződés időtartama: 2024.01.01.-2024.06.30.",{"$nulls":4},"Ellenszolgáltatás megfizetésének módja: 30 napon belül, átutalással"]
[]
["Sor-szám","Megnevezés","Kiszerelés","Mennyiség     1 hónapra vonatkozóan","Mennyiségi egység","Szállítás","Nettó egységár Ft"," Nettó összár             Ft","ÁFA %","Bruttó egység ár Ft","Bruttó összár              Ft"]
["TEJTERMÉKEK, SAJT, ÉLESZTŐ",null,"VALAMENNYI TÉTELSORRA  AJÁNLATOT KELL TENNI!",null,null,null,"A megadott áraknak minden a szállítással összefüggő költséget tartalmaznia kell!"]
[1,"Friss, pasztőrözött tej, 1,5%","*5 l",500,"liter","napi, hétfőtől-péntekig",null,{"$f":"D7*G7","v":0},0.05,{"$f":"G7*1.05","v":0},{"$f":"H7*1.18","v":0}]
[2,"Tejföl 20%","*5 l",50,"liter","heti három alkalom",null,{"$f":"D8*G8","v":0},0.18,{"$f":"G8*1.18","v":0},0]
[3,"Főző tejszín","0,5 l",5,"liter","alkalmanként",null,0,0.18,0,0]
[4,"Cukrozott tejszínhab növényi alapu**","*1 l",1,"liter","alkalmanként",null,0,0.27,{"$f":"G10*1.27","v":0},0]
[5,"Natúr joghurt poharas 1,4%   ","150-175 g",800,"db","hetente",null,0,0.18,0,0]
[6,"Gyümölcs joghurt poharas ","150-175 g",150,"db","hetente",null,0,0.18,0,0]
[7,"Kefír poharas 3,5%  ","150-175 g",800,"db","hetente",null,0,0.18,0,0]
[8,"Félzsíros túró","*5 kg",30,"kg","heti egy alkalom",null,0,0.18,0,0]
[9,"Vaj 80%","*100 g",4,"kg","heti egy alkalom",null,0,0.18,0,0]
[10,"Natúr party vajkrém ","200-275 g",2,"kg","heti egy alkalom",null,0,0.18,0,0]
[11,"Izesített krémtúró ","90-110 g",80,"db","hetente",null,0,0.18,0,0]
[12,"Habos vanília puding ","175-200 g",100,"db","hetente",null,0,0.18,0,0]
[13,"Habos csokoládé puding","175-200 g",100,"db","hetente",null,{"$f":"D19*G19","v":0},0.18,{"$f":"G19*1.18","v":0},{"$f":"H19*1.18","v":0}]
[14,"Csokis tejital","*0,2 l",50,"db","hetente",null,0,0.18,0,0]
[15,"Poharas tej","*0,2 l",350,"db","hetente",null,0,0.05,{"$f":"G21*1.05","v":0},0]
[16,"Trappista sajt félzsíros","egész",50,"kg","heti két alkalom",null,0,0.18,0,0]
[17,"Tolnai zsírszegény félkemény sajt","egész",2,"kg","hetente",null,0,0.18,0,0]
[18,"Köményes sajt","egész",2,"kg","hetente",null,0,0.18,0,0]
[19,"Kocka sajt natúr 8 cikkelyes","*200 g",80,"db","hetente",null,0,0.18,0,0]
[20,"Trappista sajtkrém ","1 kg",2,"kg","hetente",null,0,0.18,0,0]
[21,"Rizs főzőkrém","250 ml",12,"db","alkalmanként",null,0,0.27,{"$f":"G27*1.27","v":0},0]
[22,"Natúr túródeszzert","23gr-30 g",300,"db","havonta",null,0,0.18,0,0]
[23,"Élesztő friss","50 g",1,"kg","hetente",null,0,0.18,0,0]
[24,"Laktózmentes tej 1,5%","*1 l",1,"liter","alkalmanként",null,0,0.05,{"$f":"G30*1.05","v":0},0]
[25,"Laktózmentes tejföl 20%","175 g",1,"db","alkalmanként",null,0,0.18,0,0]
[26,"Laktózmentes joghurt","150-175 g",20,"db","alkalmanként",null,0,0.18,0,0]
[" ÖSSZESEN:",{"$nulls":6},{"$f":"SUM(H7:H32)","v":0},null,null,{"$f":"SUM(K7:K32)","v":0}]
[]
["A FENTI TERMÉKEK VONATKOZÁSÁBA HELYETTESÍTŐ TERMÉKEKET ELŐZETES EGYEZTETÉST ÉS GYÁRTMÁNYLAP MEGKÜLDÉSÉT KÖVETŐEN FOGADUNK EL!"]
[]
["* ezeknél a termékeknél nincs lehetőség eltérni a kért kiszerelétől. "]
["**Hulala v. Meggle"]
[]
[]
["2024.",{"$nulls":5},{"$f":"'Sertés és baromfi felvágottak'!F49","v":"____________________________________"}]
[{"$nulls":6},{"$f":"'Sertés és baromfi felvágottak'!F50","v":"cégszerű aláírás"}]

{"sheet":"Sütőipari termékek","index":7,"n_rows":21,"n_cols":11,"rows_kept":21,"cut":false,"hidden":false,"merged":[[16,0,16,10],[19,0,19,2],[19,6,19,9],[20,6,20,9],[0,0,0,10],[1,5,1,10],[2,5,2,10],[5,2,5,5],[5,6,5,10],[1,0,1,4],[2,0,2,4],[12,0,12,5],[5,0,5,1]]}
["ÁRTÁBLÁZAT"]
["Ajánlatkérő: ",{"$nulls":4},"Ajánlattevő:  "]
["Szerződés időtartama: 2024.01.01.-2024.06.30.",{"$nulls":4},"Ellenszolgáltatás megfizetésének módja: 30 napon belül, átutalással"]
[]
["Sor-szám","Megnevezés","Kiszerelés","Mennyiség         1 hónapra vonatkozóan","Mennyiségi egység","Szállítás","Nettó egységár        Ft  ","Nettó összár         Ft    ","ÁFA %","Bruttó egységár Ft","Bruttó összár             Ft"]
["SÜTŐIPARI TERMÉKEK",null,"VALAMENNYI TÉTELSORRA  AJÁNLATOT KELL TENNI!",null,null,null,"A megadott áraknak minden a szállítással összefüggő költséget tartalmaznia kell!"]
[1,"Teljes kiőrlésű lisztből készült rozskenyér ","1 kg",600,"kg","napi, hétfőtől-szombatig",null,{"$f":"D7*G7","v":0},0.18,{"$f":"G7*1.18","v":0},{"$f":"D7*J7","v":0}]
[2,"Vizes zsemle fehér","54 g",220,"db","hetente",null,0,0.18,0,0]
[3,"Teljes kiőrlésű lisztből készült zsemle","50 g",1500,"db","napi, hétfőtől-szombatig",null,0,0.18,0,0]
[4,"Finom fonott kalács","1 kg",50,"kg"," csütörtökönként",null,0,0.18,0,0]
[5,"Zsemlemorzsa  (ömlesztett)","5 kg",5,"kg","kéthetente",null,0,0.18,0,0]
[6,"Fehér kenyér","1 kg",50,"kg","napi, hétfőtől-szombatig",null,0,0.18,{"$f":"G12*1.18","v":0},{"$f":"D12*J12","v":0}]
[" ÖSSZESEN:",{"$nulls":6},{"$f":"SUM(H7:H12)","v":0},null,null,{"$f":"SUM(K7:K12)","v":0}]
[]
["Szállítási határidő: 1 hét"]
[]
["A FENTI TERMÉKEK VONATKOZÁSÁBA HELYETTESÍTŐ TERMÉKEKET ELŐZETES EGYEZTETÉST ÉS GYÁRTMÁNYLAP MEGKÜLDÉSÉT KÖVETŐEN FOGADUNK EL!"]
[]
[]
["2024.",{"$nulls":5},"____________________________________"]
[{"$nulls":6},"cégszerű aláírás"]

{"sheet":"Friss zöldség, gyümölcs","index":8,"n_rows":49,"n_cols":10,"rows_kept":49,"cut":false,"hidden":false,"merged":[[49,5,49,8],[0,0,0,9],[1,4,1,9],[2,4,2,9],[5,2,5,4],[5,5,5,9],[41,0,41,4],[45,0,45,9],[47,0,47,1],[47,5,47,8],[48,5,48,8],[1,0,1,3],[2,0,2,3],[5,0,5,1]]}
[" ÁRTÁBLÁZAT"]
["Ajánlatkérő: ",null,null,null,"Ajánlattevő: "]
["Szerződés időtartama: 2024.01.01.-2024.06.30.",null,null,null,"Ellenszolgáltatás megfizetésének módja: 30 napon belül, átutalással"]
[]
["Sor-szám","Megnevezés","Mennyiség         1 hónapra vonatkozóan","Mennyiségi egység","Szállítás","Nettó egységár           Ft ","Nettó összár         Ft","ÁFA %","Bruttó egységár Ft","Bruttó összár          Ft"]
["FRISS ZÖLDSÉG, GYÜMÖLCS",null,"VALAMENNYI TÉTELSORRA AJÁNLATOT KELL TENNI!",null,null,"A megadott áraknak minden a szállítással összefüggő költséget tartalmaznia kell!"]
[1,"Alma",200,"kg","hetente",null,{"$f":"C7*F7","v":0},0.27,{"$f":"F7*1.27","v":0},{"$f":"C7*I7","v":0}]
[2,"Banán",60,"kg","hetente",null,0,0.27,0,0]
[3,"Burgonya",700,"kg","hetente",null,0,0.27,0,0]
[4,"Citrom",5,"kg","hetente",null,0,0.27,0,0]
[5,"Csiperke gomba",6,"kg","kéthetente",null,0,0.27,0,0]
[6,"Fejes saláta",20,"db","szezonban",null,0,0.27,0,0]
[7,"Fejeskáposzta",10,"kg","hetente",null,0,0.27,0,0]
[8,"Fokhagyma",4,"kg","kéthetente",null,0,0.27,0,0]
[9,"Jégcsapretek",50,"kg","hetente",null,0,0.27,0,0]
[10,"Kaliforniai paprika",30,"kg","hetente",null,0,0.27,0,0]
[11,"Kelkáposzta",10,"kg","kéthetente",null,0,0.27,0,0]
[12,"Kígyó uborka",60,"kg","hetente",null,0,0.27,0,0]
[13,"Kínaikel",5,"kg","szezonban",null,0,0.27,0,0]
[14,"Körte",20,"kg","szezonban",null,0,0.27,0,0]
[15,"Paradicsom",60,"kg","hetente",null,0,0.27,0,0]
[16,"Petrezselyemgyökér",80,"kg","hetente",null,0,0.27,0,0]
[17,"Póréhagyma",90,"db","hetente",null,0,0.27,0,0]
[18,"Sárgarépa",200,"kg","hetente",null,0,0.27,0,0]
[19,"Savanyú káposzta apró, vödrös",17,"kg","alkalmanként",null,0,0.27,0,0]
[20,"Savanyú káposzta hasáb, vödrös",12,"kg","alkalmanként",null,0,0.27,0,0]
[21,"Tojás, fertőtlenített, L méret",1000,"db","hetente",null,0,0.05,{"$f":"F27*1.05","v":0},0]
[22,"Tv paprika",30,"kg","hetente",null,0,0.27,0,0]
[23,"Vöröshagyma",40,"kg","hetente",null,0,0.27,0,0]
[24,"Vöröskáposzta",4,"kg","alkalmanként",null,0,0.27,0,0]
[25,"Zeller friss",1,"db","havonta",null,0,0.27,0,0]
[26,"Lilahagyma",1,"kg","havonta",null,0,0.27,0,0]
[27,"Erős zöldpaprika",1,"db","alkalmanként",null,0,0.27,0,0]
[28,"Édesburgonya",10,"kg","havonta",null,0,0.27,0,0]
[29,"Őszibarack",50,"kg","havonta",null,0,0.27,{"$f":"F35*1.27","v":0},{"$f":"C35*I35","v":0}]
[30,"Szőlő",50,"kg","havonta",null,0,0.27,0,0]
[31,"Padlizsán",10,"kg","havonta",null,0,0.27,0,0]
[32,"Narancs",45,"kg","szezonban",null,0,0.27,0,0]
[33,"Szilva",30,"kg","szezonban",null,0,0.27,0,0]
[34,"Mandarin",30,"kg","szezonban",null,0,0.27,0,0]
[35,"Kápia paprika",10,"kg","havonta",null,0,0.27,0,0]
[" ÖSSZESEN:",{"$nulls":5},{"$f":"SUM(G7:G41)","v":0},null,null,{"$f":"SUM(J7:J41)","v":0}]
[]
["Szállítási határidő: 1 hét"]
[]
["A FENTI TERMÉKEK VONATKOZÁSÁBA HELYETTESÍTŐ TERMÉKEKET ELŐZETES EGYEZTETÉS UTÁN FOGADUNK EL!"]
[]
["2024.",{"$nulls":4},"____________________________________"]
[{"$nulls":5},"cégszerű aláírás"]